Cogmind - Beta 14 @@@ ROGUE MODE // 2025.04.27 @ 22:59:44 Player: jumpy Result: Destroyed by X-62 Marksman with Gauss Rifle Performance ------------- Evolutions (3) 1500 Regions Visited (9) 1800 Robots Destroyed (68) 340 Value Destroyed (3535) 3535 Prototype IDs (5) 100 Alien Tech Used (0) 0 Bonus (1803) 1803 TOTAL SCORE: 9078 Bonus ------- High Alert Combat Kills 124 Follower Combat Kills 279 Entered Garrisons 400 Used RIF Installer 1000 Cogmind --------- Core Integrity 0/700 Matter 253/300 Energy 103/160 System Corruption 12% Temperature Cool (9) Movement Walking (260) Ox2 Location -7/Garrison Parts ------- > --- POWER (1) -------- Light Nuclear Core > --- PROPULSION (4) --- Aluminum Leg Carbon-fiber Leg Carbon-fiber Leg > --- UTILITY (6) ------ Huge Storage Unit Advanced Targeting Computer Relay Coupler [NC] (33) Relay Coupler [Behemoth] (12) > --- WEAPON (2) ------- Heavy Particle Gun (fused) Katana (fused) > --- INVENTORY (25) --- Light Nuclear Core Aluminum Leg Aluminum Leg Aluminum Leg Improved Sensor Array Heavy Ion Cannon High-powered Shotgun Gauss Cannon Gauss Cannon Improved Datajack Remote Datajack Remote Datajack Peak State ------------ > --- POWER ------------ Heavy Ion Engine > --- PROPULSION ------- Light Treads Light Treads Improved Heavy Treads > --- UTILITY ---------- Huge Storage Unit Advanced Targeting Computer Transmission Jammer Improved Light Armor Plating > --- WEAPON ----------- Heavy Ion Cannon > --- INVENTORY -------- Light Nuclear Core Light Nuclear Core Light Nuclear Core Improved Sensor Array Heavy Particle Gun High-powered Shotgun Gauss Cannon Gauss Cannon Improved Datajack Remote Datajack Remote Datajack Katana [Rating: 38] Favorites ----------- Power Heavy Ion Engine Engine Heavy Ion Engine Power Core Light Nuclear Core Propulsion Light Treads Treads Light Treads Leg VSS Leg Wheel Compact Wheel Hover Unit Improved Hover Unit Utility Advanced Targeting Computer Device Seismic Detector Storage Huge Storage Unit Processor Advanced Targeting Computer Hackware Relay Coupler [NC] Protection Improved Light Armor Plating Weapon Makeshift Laser Energy Gun Makeshift Laser Energy Cannon Heavy Ion Cannon Ballistic Gun Assault Rifle Ballistic Cannon Gauss Cannon Launcher Improved Grenade Launcher Special Weapon Remote Datajack Slashing Weapon Katana Special Melee Weapon Datajack Build | -11 -10 -10 -10 -9 -8 -8 -8 -7 -7 ------- Run | Yrd Mat Min Exi Min Mat Gar Mat Fac Gar Slots Evolved 6 | . . . . . 4 . . 2 . Power . | . . . . . . . . . . Propulsion 2 | . . . . . 2 . . . . Utility 4 | . . . . . 2 . . 2 . Weapon . | . . . . . . . . . . Parts Attached 92 | 8 3 . 1 . 11 9 23 14 23 Power 11 | 1 . . . . 1 1 4 1 3 Engine 9 | 1 . . . . 1 1 4 1 1 Core 2 | . . . . . . . . . 2 Reactor . | . . . . . . . . . . Propulsion 37 | 2 3 . . . 7 3 8 4 10 Treads 11 | 2 3 . . . . 2 . 1 3 Leg 13 | . . . . . . . 6 . 7 Wheel 8 | . . . . . 2 1 2 3 . Hover 5 | . . . . . 5 . . . . Flight . | . . . . . . . . . . Utility 20 | 2 . . 1 . 1 1 6 4 5 Device 2 | 1 . . . . . . . . 1 Storage 4 | 1 . . 1 . . . 1 1 . Processor 2 | . . . . . 1 . . 1 . Hackware 5 | . . . . . . . 2 . 3 Protection 7 | . . . . . . 1 3 2 1 Artifact . | . . . . . . . . . . Weapon 24 | 3 . . . . 2 4 5 5 5 Energy Gun 6 | 1 . . . . 2 2 . . 1 Energy Cannon 1 | . . . . . . . . . 1 Ballistic Gun 5 | 2 . . . . . 1 2 . . Ballistic Cannon 3 | . . . . . . . 1 2 . Launcher 4 | . . . . . . 1 . 2 1 Special Weapon 2 | . . . . . . . . 1 1 Impact Weapon . | . . . . . . . . . . Slashing Weapon 1 | . . . . . . . . . 1 Piercing Weapon . | . . . . . . . . . . Special Melee Weapon 2 | . . . . . . . 2 . . Unidentified Prototypes 1 | . . . . . . . 1 . . Parts Lost 36 | . . . . . . 7 8 5 16 Power 5 | . . . . . . 1 1 . 3 Propulsion 16 | . . . . . . 4 3 3 6 Utility 9 | . . . . . . 1 2 1 5 Weapon 6 | . . . . . . 1 2 1 2 Highest Loss Streak 6 | . . . . . . 6 2 2 4 To Critical Strikes . | . . . . . . . . . . Average Slot Usage (%) 77 | . 100 100 100 100 80 78 94 77 55 Engine 7 | . 14 14 14 14 9 9 8 7 2 Core 1 | . . . . . . . . . 4 Treads 8 | . 28 28 28 28 12 10 . 1 4 Leg 7 | . . . . . . . 32 . 2 Wheel 4 | . . . . . 11 8 2 12 2 Device 4 | . 14 14 14 14 9 5 . . 2 Storage 8 | . 14 14 14 14 9 9 9 7 7 Processor 7 | . . . . . 1 9 9 15 7 Hackware 4 | . . . . . . . 7 5 5 Protection 4 | . . . . . . 7 8 13 1 Energy Gun 7 | . 14 14 14 14 15 13 9 1 4 Ballistic Gun 3 | . 14 14 14 14 2 4 2 . . Ballistic Cannon 2 | . . . . . . . 3 6 1 Slashing Weapon 1 | . . . . . . . . . 4 Peak Build Rating 38 | 7 7 7 8 8 24 24 34 31 38 Average Rating 21 | 5 6 7 7 8 15 17 30 27 25 On Entrance 13 | . 7 7 7 8 8 24 19 23 29 Naked Turns . | . . . . . . . . . . Heaviest Build 106 | 15 15 15 20 20 24 25 37 106 106 Greatest Support 115 | 40 40 40 40 40 40 40 54 48 115 Greatest Overweight (x) 32 | . 4 . . . 3 2 2 3 32 Average Overweight (x) 1 | . . . . . . . . 2 5 Largest Inventory Capacity 25 | 8 8 8 10 10 10 10 15 25 25 Average Capacity 16 | 6 8 8 9 10 10 10 12 21 25 Most Carried 14 | 5 8 8 10 10 10 10 11 14 14 Average Carried 9 | 3 6 8 8 10 9 7 9 10 10 Final Capacity 25 | 8 8 8 10 10 10 10 15 25 25 Final Carried 14 | 5 8 8 10 10 10 9 10 14 12 Class Distribution -------------------- 69% | Mutant 15% | Commander-Mutant 14% | Scavenger-Mutant Dominant Class ---------------- Mutant | -10/Materials Mutant | -10/Mines Commander-Mutant | -10/Exiles Commander-Mutant | -9/Mines Commander-Mutant | -8/Materials Mutant | -8/Garrison Mutant | -8/Materials Mutant | -7/Factory Mutant | -7/Garrison Resources | -11 -10 -10 -10 -9 -8 -8 -8 -7 -7 ----------- Run | Yrd Mat Min Exi Min Mat Gar Mat Fac Gar Matter Collected 1808 | 266 98 3 . 16 100 114 393 236 582 Remotely . | . . . . . . . . . . Salvage Created 2800 | 47 106 . . 56 . 420 955 423 793 Parts 143 | 9 4 . . 1 . 25 50 27 27 Haulers Intercepted 3 | . . . . . . . 2 . 1 Recyclers Shooed 1 | . . . . . . . . 1 . Parts Field Recycled . | . . . . . . . . . . Retrieved Matter . | . . . . . . . . . . Parts Self-Destructed . | . . . . . . . . . . Prevented . | . . . . . . . . . . Kills | -11 -10 -10 -10 -9 -8 -8 -8 -7 -7 ------- Run | Yrd Mat Min Exi Min Mat Gar Mat Fac Gar Combat Hostiles Destroyed 57 | . 3 . . 1 . 12 15 11 15 Melee 4 | . . . . . . . . . 4 Guns 30 | . 3 . . 1 . 9 14 . 3 Cannons 13 | . . . . . . . 1 4 8 AOE 10 | . . . . . . 3 . 7 . Classes Destroyed 13 | 1 1 . . . . 3 3 4 1 Builder 1 | . . . . . . . . 1 . Tunneler 2 | 2 . . . . . . . . . Hauler 3 | . . . . . . . 2 . 1 Recycler 2 | . . . . . . . 1 1 . Operator 1 | . . . . . . . . 1 . Watcher 2 | . . . . . . . 1 1 . Swarmer 12 | . . . . . . 4 2 4 2 Grunt 28 | . 3 . . 1 . 3 7 4 10 Brawler 2 | . . . . . . . . 1 1 Sentry 11 | . . . . . . 3 6 1 1 Specialist 1 | . . . . . . . . . 1 Hunter 2 | . . . . . . 2 . . . Programmer 1 | . . . . . . . . 1 . Best Kill Streak 5 | 1 2 . . 1 . 5 3 5 2 Combat Bots Only 5 | . 2 . . 1 . 5 3 4 2 Max Kills in Single Turn 5 | 1 1 . . 1 . 1 1 5 1 Gunslinging . | . . . . . . . . . . Exploded 3 | . . . . . . 1 . 3 . Melee 1 | . . . . . . . . . 1 Uniques/NPCs Destroyed . | . . . . . . . . . . Combat | -11 -10 -10 -10 -9 -8 -8 -8 -7 -7 -------- Run | Yrd Mat Min Exi Min Mat Gar Mat Fac Gar Hostile Shots Fired 558 | . 21 . . 7 1 106 111 66 246 Missed 167 | . 2 . . 1 1 32 28 20 83 Damage Taken 5884 | . 205 . . 66 14 994 1259 808 2538 Core 1139 | . 44 . . 10 14 193 162 183 533 Absorbed by Shields 61 | . . . . . . . . . 61 Regen/Repaired (Parts) 161 | . . . . . . . 161 . . Core Remaining (%) 70 | 100 . . . 78 . . 32 . . Volleys Fired 246 | 5 14 . . 2 . 30 73 27 95 Largest 2 | 2 2 . . 2 . 2 2 2 1 Hottest 112 | 70 70 . . 70 . 112 106 98 65 Shots Fired 352 | 10 28 . . 4 . 60 115 34 101 Gun 222 | 10 28 . . 4 . 56 85 7 32 Cannon 120 | . . . . . . . 30 24 66 Launcher 7 | . . . . . . 4 . 3 . Special 3 | . . . . . . . . . 3 Kinetic 133 | 5 14 . . 2 . 15 41 24 32 Thermal 209 | 5 14 . . 2 . 41 74 7 66 Explosive 7 | . . . . . . 4 . 3 . Electromagnetic . | . . . . . . . . . . Robot Hit Streak 23 | 2 4 . . 4 . 13 12 23 16 Robot Miss Streak 4 | 4 2 . . . . 2 3 1 3 Penetration Max . | . . . . . . . . . . Secondary Targets 1 | . . . . . . 1 . . . Max Gunslinging Chain 1 | . . . . . . 1 . . . Shots Hit Robots 246 | 3 16 . . 4 . 33 78 26 86 Core Hits 124 | 2 6 . . 1 . 22 35 25 33 Critical Kills . | . . . . . . . . . . Critical Parts Destroyed . | . . . . . . . . . . Critical Strikes 20 | . 1 . . . . 2 9 6 2 Burn 13 | . 1 . . . . 2 9 1 . Blast 7 | . . . . . . . . 5 2 Melee Attacks 29 | . . . . . . . 4 . 25 Impact . | . . . . . . . . . . Slashing 25 | . . . . . . . . . 25 Piercing . | . . . . . . . . . . Sneak Attacks 3 | . . . . . . . 3 . . Combat Hostiles . | . . . . . . . . . . Follow-up Attacks . | . . . . . . . . . . Damage Inflicted 6101 | 51 203 . . 49 . 884 1371 1266 2277 Guns 2394 | 51 203 . . 49 . 580 985 100 426 Cannons 2096 | . . . . . . . 379 537 1180 Explosions 907 | . . . . . . 304 . 603 . Melee 558 | . . . . . . . . . 558 Ramming 146 | . . . . . . . 7 26 113 Kinetic 1746 | 14 89 . . 25 . 155 498 537 428 Thermal 2744 | 37 114 . . 24 . 425 866 100 1178 Explosive 907 | . . . . . . 304 . 603 . Electromagnetic . | . . . . . . . . . . Impact . | . . . . . . . . . . Slashing 558 | . . . . . . . . . 558 Piercing . | . . . . . . . . . . Highest Corruption 12 | . . . . . . . 1 6 12 Average Corruption 9 | . . . . . . . 1 3 11 Corruption Purged . | . . . . . . . . . . Corruption Blocked . | . . . . . . . . . . Effects 113 | . . . . . . . 2 6 105 Message Errors 26 | . . . . . . . . 2 24 Matter Fused 28 | . . . . . . . . 3 25 Heat Flow Errors 14 | . . . . . . . . 1 13 Energy Discharges 14 | . . . . . . . . . 14 Parts Rejected 1 | . . . . . . . 1 . . Parts Fused 3 | . . . . . . . . . 3 Data Loss (minor) 9 | . . . . . . . 1 . 8 Data Loss (major) 6 | . . . . . . . . . 6 Misfires 7 | . . . . . . . . . 7 Alerts 1 | . . . . . . . . . 1 Misdirections 3 | . . . . . . . . . 3 Weapon Failures 1 | . . . . . . . . . 1 Overload Shots . | . . . . . . . . . . Overflow Damage 49 | . . . . . . 8 12 10 19 Projectiles 25 | . . . . . . . 12 . 13 Explosions 18 | . . . . . . 8 . 10 . Melee 6 | . . . . . . . . . 6 Knockbacks 14 | . . . . . . . 4 7 3 Impact 1 | . . . . . . . . . 1 Kinetic 12 | . . . . . . . 3 7 2 Secondary 1 | . . . . . . . 1 . . Self-Inflicted Damage 414 | . . . . . . 191 3 220 . Shots 7 | . . . . . . 3 . 4 . Rammed 15 | . . . . . . . 1 2 12 Targets Rammed 16 | . . . . . . . 1 2 13 Kicked . | . . . . . . . . . . Crushed 1 | . . . . . . . . . 1 Highest Temperature 398 | 18 117 . . 24 . 218 398 114 239 Average Temperature 64 | 9 49 . . 15 . 61 90 26 62 Received Heat Transfer 2098 | . 114 . . 36 9 108 576 150 1105 Effects 1 | . . . . . . . 1 . . Shutdowns 1 | . . . . . . . 1 . . Siege Activations . | . . . . . . . . . . Robots Corrupted . | . . . . . . . . . . Combat Hostiles . | . . . . . . . . . . Parts Fried . | . . . . . . . . . . Impact Corruptions . | . . . . . . . . . . Robots Melted . | . . . . . . . . . . Combat Hostiles . | . . . . . . . . . . Parts Melted 11 | . . . . 1 . 4 2 2 2 Heat Transferred 6134 | 111 407 . . 74 . 1073 2553 296 1620 Parts Sabotaged . | . . . . . . . . . . Parts Stolen . | . . . . . . . . . . Parts Stripped . | . . . . . . . . . . Power Chain Reactions . | . . . . . . . . . . Alert | -11 -10 -10 -10 -9 -8 -8 -8 -7 -7 ------- Run | Yrd Mat Min Exi Min Mat Gar Mat Fac Gar Peak Influence 1215 | 10 101 39 . 78 141 365 301 343 1215 Initial 177 | . 6 39 . . 29 16 177 99 126 Average 323 | 2 37 39 . 35 46 225 220 206 584 Maximum Alert Level 4 | . . . . . . 1 1 1 4 Low Security (%) 39 | 100 100 100 . 100 100 37 43 61 2 Level 1 36 | . . . . . . 62 56 38 35 Level 2 11 | . . . . . . . . . 30 Level 3 10 | . . . . . . . . . 28 Level 4 1 | . . . . . . . . . 3 Level 5 . | . . . . . . . . . . High Security . | . . . . . . . . . . Max Security . | . . . . . . . . . . Squads Dispatched 4 | . . . . . . . 2 2 . Investigation 1 | . . . . . . . 1 . . Extermination 1 | . . . . . . . . 1 . Reinforcement 2 | . . . . . . . 1 1 . Assault . | . . . . . . . . . . Garrison . | . . . . . . . . . . Intercept . | . . . . . . . . . . Searches Triggered . | . . . . . . . . . . Construction Impeded . | . . . . . . . . . . Haulers Reinforced . | . . . . . . . . . . Active Scanning Responses . | . . . . . . . . . . Cargo Convoy Interrupts . | . . . . . . . . . . Stealth | -11 -10 -10 -10 -9 -8 -8 -8 -7 -7 --------- Run | Yrd Mat Min Exi Min Mat Gar Mat Fac Gar Distress Signals 3 | . 2 . . . . . 1 . . Communications Jammed . | . . . . . . . . . . Distress Signals . | . . . . . . . . . . Times Spotted 106 | . 8 . . 2 6 12 30 17 31 Peak Tracking Total 5 | . 3 . . 2 4 5 5 4 4 Tactical Retreats 6 | . . . . . 2 . 3 . 1 Traps | -11 -10 -10 -10 -9 -8 -8 -8 -7 -7 ------- Run | Yrd Mat Min Exi Min Mat Gar Mat Fac Gar Traps Triggered 12 | . 2 . . . . 3 2 2 3 Indirectly . | . . . . . . . . . . Trap Hack Attempts . | . . . . . . . . . . Triggered . | . . . . . . . . . . Disarmed . | . . . . . . . . . . Reprogrammed . | . . . . . . . . . . Reused . | . . . . . . . . . . Traps Extracted . | . . . . . . . . . . Installed . | . . . . . . . . . . Triggered . | . . . . . . . . . . Machines | -11 -10 -10 -10 -9 -8 -8 -8 -7 -7 ---------- Run | Yrd Mat Min Exi Min Mat Gar Mat Fac Gar Machines Disabled 11 | . . . . . . 3 . 5 3 Max in Single Turn 3 | . . . . . . 2 . 3 1 Garrison Relay 4 | . . . . . . 1 . . 3 Phase Generator 1 | . . . . . . 1 . . . Machines Repaired . | . . . . . . . . . . Machines Dismantled . | . . . . . . . . . . Machines Sabotaged . | . . . . . . . . . . Overloaded Fab Kills . | . . . . . . . . . . Hacking | -11 -10 -10 -10 -9 -8 -8 -8 -7 -7 --------- Run | Yrd Mat Min Exi Min Mat Gar Mat Fac Gar Machines Accessed 14 | . 2 . . . 3 2 4 2 1 Terminals 9 | . 2 . . . 1 2 2 1 1 Fabricators . | . . . . . . . . . . Repair Stations 1 | . . . . . . . 1 . . Recycling Units . | . . . . . . . . . . Scanalyzers 2 | . . . . . 1 . 1 . . Garrison Access 2 | . . . . . 1 . . 1 . Total Hacks 31 | . 6 . . . 5 3 12 3 2 Successful 22 | . 2 . . . 4 2 12 1 1 Failed 9 | . 4 . . . 1 1 . 2 1 Catastrophic . | . . . . . . . . . . Database Lockouts . | . . . . . . . . . . Manual 6 | . 2 . . . . . 2 2 . Terminals 16 | . 6 . . . 1 3 2 2 2 Fabricators . | . . . . . . . . . . Repair Stations 2 | . . . . . . . 2 . . Recycling Units . | . . . . . . . . . . Scanalyzers 11 | . . . . . 3 . 8 . . Garrison Access 2 | . . . . . 1 . . 1 . Terminal Hacks 7 | . 2 . . . 1 2 1 . 1 Record 1 | . . . . . 1 . . . . Robot Schematic 1 | . . . . . . . 1 . . Prototype ID Bank 1 | . 1 . . . . . . . . Open Door 1 | . . . . . . 1 . . . Emergency Access Points 1 | . . . . . . . . . 1 Hauler Manifests 1 | . 1 . . . . . . . . Garrison Registry 1 | . . . . . . 1 . . . Fabricator Hacks . | . . . . . . . . . . Repair Station Hacks 2 | . . . . . . . 2 . . Scan Component 1 | . . . . . . . 1 . . Repair 1 | . . . . . . . 1 . . Recycling Unit Hacks . | . . . . . . . . . . Scanalyzer 10 | . . . . . 2 . 8 . . Insert Component 5 | . . . . . 1 . 4 . . Analyze 5 | . . . . . 1 . 4 . . Garrison Access Hacks 2 | . . . . . 1 . . 1 . Unlock Access 2 | . . . . . 1 . . 1 . Unauthorized Hacks 1 | . . . . . . . 1 . . Terminals 1 | . . . . . . . 1 . . Assimilate 1 | . . . . . . . 1 . . Fabricators . | . . . . . . . . . . Repair Stations . | . . . . . . . . . . Recycling Units . | . . . . . . . . . . Scanalyzers . | . . . . . . . . . . Garrison Access . | . . . . . . . . . . Data Cores Recovered 2 | . . . . . 1 . . 1 . Used . | . . . . . . . . . . Hacking Detections 7 | . 1 . . . 1 1 2 1 1 Full Trace Events . | . . . . . . . . . . Feedback Events . | . . . . . . . . . . Feedback Blocked . | . . . . . . . . . . Robot Schematics Acquired 1 | . . . . . . . 1 . . Robots Built . | . . . . . . . . . . Authchips . | . . . . . . . . . . Time . | . . . . . . . . . . Total Robot Build Rating . | . . . . . . . . . . Part Schematics Acquired 5 | . . . . . 1 . 4 . . Parts Built . | . . . . . . . . . . Authchips . | . . . . . . . . . . Time . | . . . . . . . . . . Total Part Build Rating . | . . . . . . . . . . Parts Repaired 1 | . . . . . . . 1 . . Time 38 | . . . . . . . 38 . . Parts Recycled . | . . . . . . . . . . Recycled Matter . | . . . . . . . . . . Retrieved Matter . | . . . . . . . . . . Retrieved Components . | . . . . . . . . . . Parts Scanalyzed 5 | . . . . . 1 . 4 . . Part Schematics Acquired 5 | . . . . . 1 . 4 . . Parts Damaged . | . . . . . . . . . . Bothacking | -11 -10 -10 -10 -9 -8 -8 -8 -7 -7 ------------ Run | Yrd Mat Min Exi Min Mat Gar Mat Fac Gar Used RIF Installer 2 | . . . . . . 1 . . 1 Structural Interface 1 | . . . . . . . . . 1 Robots Hacked 6 | . . . . . . . 3 . 3 Non-combat 2 | . . . . . . . 2 . . Combat 4 | . . . . . . . 1 . 3 Robot Hacks Applied 6 | . . . . . . . 3 . 3 drop_inventory 1 | . . . . . . . 1 . . go_dormant 1 | . . . . . . . . . 1 formatsys_low 1 | . . . . . . . 1 . . formatsys_high 3 | . . . . . . . 1 . 2 Relay Couplers Released 15 | . . . . . . 3 . . 12 Machine Destruction 15 | . . . . . . 3 . . 12 Attached 5 | . . . . . . . 2 . 3 Fabnet Peak Effective % . | . . . . . . . . . . Robots Rewired 2 | . . . 2 . . . . . . Allies Hacked . | . . . . . . . . . . Hacks Repelled . | . . . . . . . . . . Allies | -11 -10 -10 -10 -9 -8 -8 -8 -7 -7 -------- Run | Yrd Mat Min Exi Min Mat Gar Mat Fac Gar Total Allies 14 | . . 3 2 . . 1 3 3 2 Largest Group 5 | . . 3 5 5 5 2 2 3 5 Highest-Rated Group 117 | . . 40 56 56 56 25 36 93 117 Highest-Rated Ally 31 | . . 16 16 16 16 25 26 31 31 Total Orders . | . . . . . . . . . . Ally Attacks 104 | . . . . 13 33 6 7 . 45 Total Damage 1331 | . . . . 128 253 124 191 . 635 Kills 17 | . . . . 1 6 . 3 . 7 Allies Corrupted . | . . . . . . . . . . Allies Melted . | . . . . . . . . . . Intel | -11 -10 -10 -10 -9 -8 -8 -8 -7 -7 ------- Run | Yrd Mat Min Exi Min Mat Gar Mat Fac Gar Robot Analysis Total . | . . . . . . . . . . Derelict Logs Recovered . | . . . . . . . . . . Drone Launches . | . . . . . . . . . . Drone Recoveries . | . . . . . . . . . . Exploration | -11 -10 -10 -10 -9 -8 -8 -8 -7 -7 ------------- Run | Yrd Mat Min Exi Min Mat Gar Mat Fac Gar Turns Passed 7811 | 182 385 63 771 57 525 581 1655 959 2633 Spaces Moved 3924 | 96 198 38 468 27 351 346 1167 564 669 Core 71 | 2 1 . . . . . . . 68 Treads 1512 | 94 197 38 468 27 205 181 21 37 244 Legs 1096 | . . . . . . . 999 . 97 Wheels 1055 | . . . . . . 121 147 527 260 Hover 190 | . . . . . 146 44 . . . Flight . | . . . . . . . . . . Fastest Speed 48 | 50 160 160 160 160 48 48 90 100 130 Average Speed 167 | 157 160 160 160 160 114 128 108 150 342 Slowest Speed 1650 | 160 250 160 160 160 250 240 180 320 1650 Overloaded Moves . | . . . . . . . . . . Propulsion Burnouts . | . . . . . . . . . . Robots Hopped . | . . . . . . . . . . Cave-ins Triggered . | . . . . . . . . . . Exploration Rate (%) 37 | 7 32 12 88 13 14 51 73 15 65 Regions Visited 9 Branch Regions 3 Pre-discovered Areas . | . . . . . . . . . . Known Exits Taken 2 | . . . . . 1 . . 1 . Unknown Exits Taken 6 | 1 1 1 1 1 . . 1 . . Scrap Searched 1 | . . 1 . . . . . . . Spaces Dug . | . . . . . . . . . . Terrain Destroyed 136 | . . . . . . 95 2 39 . Melee . | . . . . . . . . . . Projectile 8 | . . . . . . . 2 6 . AOE 128 | . . . . . . 95 . 33 . Terrain Rammed . | . . . . . . . . . . Walls Destroyed . | . . . . . . . . . . Machines Disabled . | . . . . . . . . . . Actions | -11 -10 -10 -10 -9 -8 -8 -8 -7 -7 --------- Run | Yrd Mat Min Exi Min Mat Gar Mat Fac Gar Total 4765 | 113 236 40 491 37 475 422 1444 637 870 Wait 323 | . 17 3 4 9 96 25 144 8 17 Move 3914 | 95 197 37 467 26 350 344 1166 563 669 Hop . | . . . . . . . . . . Pick Up 50 | 5 4 . 2 . 8 4 14 9 4 Fast Attach 42 | 7 3 . . . 3 3 10 6 10 Attach 23 | . . . . . 3 4 7 2 7 Detach 2 | . . . . . . . 2 . . Swap 27 | 1 . . 1 . 5 2 6 6 6 Drop 38 | . 1 . 1 . 10 2 15 6 3 Fire 246 | 5 14 . . 2 . 30 73 27 95 Melee 29 | . . . . . . . 4 . 25 Ram 2 | . . . . . . . 1 1 . Kick . | . . . . . . . . . . Crush 14 | . . . . . . . . 1 13 Escape Stasis 36 | . . . . . . 8 . 8 20 Rewire 19 | . . . 16 . . . 2 . 1 Trap . | . . . . . . . . . . Miscellaneous . | . . . . . . . . . . Route ------- -11/Scrapyard -10/Materials -10/Mines -10/Exiles -9/Mines -8/Materials -8/Garrison (discovered 3 exits: *Mat x3) -8/Materials -7/Factory (discovered 2 exits: [*Fac] / Gar) -7/Garrison (discovered 2 exits: [*Fac x2]) History --------- Turn | Location | Event 7 | -11/Scrapyard | Discovered new exit (range 15) 183 | -11/Scrapyard | Entered Materials 311 | -10/Materials | Build established: Mutant 550 | -10/Materials | Discovered new exit (range 6) 568 | -10/Materials | Entered Mines 575 | -10/Mines | Assisted by bots powering up and referring to "LRC-V3" 618 | -10/Mines | Deemed a non-threat by the Exiles lab entrance 620 | -10/Mines | Discovered new exit (range 5) 631 | -10/Mines | Entered Exiles 631 | -10/Exiles | Found Exiles lab destroyed 631 | -10/Exiles | Accompanied by 3 allies 1023 | -10/Exiles | Build established: Commander-Mutant 1376 | -10/Exiles | Discovered new exit (range 14) 1402 | -10/Exiles | Entered Mines 1402 | -9/Mines | Accompanied by 5 allies 1415 | -9/Mines | Discovered new exit (range 15) 1459 | -9/Mines | Entered Materials 1459 | -8/Materials | Accompanied by 5 allies 1459 | -8/Materials | Evolved 4 slots: Propulsion x2, Utility x2 1984 | -8/Materials | Identified exit to Garrison 1984 | -8/Materials | Entered Garrison 1984 | -8/Garrison | Accompanied by 2 allies 2071 | -8/Garrison | Phase Generator disabled 2102 | -8/Garrison | Lost 6 parts (1p4n1w) 2107 | -8/Garrison | Rescued a captive Derelict 2194 | -8/Garrison | Triggered checkpoint 2254 | -8/Garrison | Discovered new exit (range 54) 2254 | -8/Garrison | Discovered new exit (range 76) 2254 | -8/Garrison | Discovered new exit (range 62) 2338 | -8/Garrison | Triggered checkpoint 2447 | -8/Garrison | Installed Relay Interface Framework 2492 | -8/Garrison | Garrison Relay disabled 2565 | -8/Garrison | Entered Materials 2684 | -8/Materials | Build established: Mutant 2812 | -8/Materials | Repaired Imp. Light Armor Plating 3645 | -8/Materials | Core integrity fell below 50% 3838 | -8/Materials | Discovered new exit (range 13) 4220 | -8/Materials | Entered Factory 4220 | -7/Factory | Evolved 2 slots: Utility x2 5125 | -7/Factory | Discovered new exit (range 15) 5126 | -7/Factory | Build established: Scavenger-Mutant 5164 | -7/Factory | Allied Derelicts emerged from ambush trap array 5178 | -7/Factory | Identified exit to Garrison 5179 | -7/Factory | Entered Garrison 5179 | -7/Garrison | Accompanied by 3 allies 5195 | -7/Garrison | Triggered checkpoint 5200 | -7/Garrison | System corruption reached 10% 5232 | -7/Garrison | Garrison Relay disabled 5431 | -7/Garrison | Triggered checkpoint 5500 | -7/Garrison | Lost 4 allies 5534 | -7/Garrison | Lost 4 parts (1p1n1u1w) 5630 | -7/Garrison | Discovered new exit (range 11) 5675 | -7/Garrison | Triggered checkpoint 5684 | -7/Garrison | Core integrity fell below 50% 5811 | -7/Garrison | Build established: Mutant 5827 | -7/Garrison | Expanded RIF knowledge: Structural Interface 6065 | -7/Garrison | Triggered checkpoint 6235 | -7/Garrison | Triggered checkpoint 6335 | -7/Garrison | Lost 4 parts (1p2n1u) 6429 | -7/Garrison | Discovered new exit (range 13) 6507 | -7/Garrison | Triggered checkpoint 6621 | -7/Garrison | Garrison Relay disabled 6833 | -7/Garrison | Garrison Relay disabled 7775 | -7/Garrison | Triggered checkpoint 7781 | -7/Garrison | Triggered checkpoint 7782 | -7/Garrison | Core integrity fell below 20% 7812 | -7/Garrison | Destroyed by X-62 Marksman with Gauss Rifle Last Messages --------------- 07657_ Acquired Aluminum Leg. 07659_ Acquired 25 matter. 07664_ Acquired Aluminum Leg. 07673_ Acquired 13 matter. 07675_ FFZ2G BGQGC=&Z7TCLSALDJTKKY|8YDWYU4=U41A 07696_ System corrupted: Matter fused (-10). 07712_ System corrupted: Heat flow error (+102). 07729_ ALERT: Garrison interior compromised. 07742_ System corrupted: Heat flow error (+262). 07764_ System corrupted: Matter fused (-7). 07775_ Beams of light sweep through the air. An alarm sounds. 07781_ Penetrated by Slug. 07787_ Critical hit (Burn: +37). 07790_ Penetrated by Slug. 07791_ X-62 Marksman destroyed. 07794_ Carbon-fiber Leg destroyed. 07797_ System corrupted: Energy discharge (-36). 07803_ Penetrated by Slug. 07803_ Critical hit (Burn: +37). 07806_ Lgt. Nuclear Core destroyed. Map ----- +----------------------------------------------------+ | ????# #?????????????????# #######"+# | | ????# ##+##### #?????????????????# #?????# # | | ????# ?# #???# #?????????????????# #?????# # | | ???## ?# #???# #?????????????????+ +????? # | | ???#! !#*#???# #?????????????????# #?????# # | | ???#! !#%##### ################+## #?????# # | | ???#! !+%%[* + +! %%% + ## #?????# # | | ???#! !####### ###+##+##+### ## #?????# # | | ???#!!!!??????# % ^ #?????? # | | ???####???????# +?????? # | | ??????????????# ^ +?????? # | | ??????????????############ ## [*%## #??????### | | ???????????????????????### ## ## ###??????? | | ???????????????????????# #??????? | | ???????????????????????# %= #??????? | | ???????????????????????+ [%![= #??????? | | ???????????????????????# =%[*%= #??????? | | ???????????????????????### ## ##=*%###??????? | | ???????????????##+######## ## ##[*[########## | | ???????????????# ==% %^ | | ????+??????????# != %[* ^ | | ??????????????????#####+## [%! %%######## | | ?????????????????????????## !## ######??????# | | ??????????????????####????# ## #???????????# | | ??????????????????+ ### g###+###???????????# | | ??????????????????????# @x #?????????????????# | | ??????????????????????# ### #?????????????????# | | ?????+???+????????????????# #?????????????????# | | ????+??????????????????+??# #?????????????????# | | ?????????????????????????? +?????????????????# | | ?????????????????????????? #?????????????????# | | ??????????????????????????#++#?????????????????# | | ???????????????????????????????????????????????# | | ???????????????????????????????????????????????# | | ???????????????????????????????????????????????# | | ???????????????????????????????????????????????# | | ???????????????????????????????????????????????# | | ????????????????????????++++???????????????????# | | ????????????????????????+??+???????????????????# | | ????????????????????????+??+???????????????????# | | ????????????????????????++++???????????????????# | | ???????????????????????????????????????????????# | | ???????????????????????????????????????????????### | | ?????????????????????????????????????????????????? | | ???????????????+?????????????????????????????????? | | ?????????????????????????????????????????????????? | | ?????????????????????????????????????????????????? | | ?????????????????????????????????????????????????? | | ?????????????????????????????????????????????????? | | ?????????????????????????????????????????????????? | +----------------------------------------------------+ Best States ------------- Heat Dissipation 34 Energy Generation 14 Energy Capacity 280 Matter Stores 300 Matter Capacity 300 Sight Range 16 Terrain Scan Density 10 Jamming Range 12 Armor Coverage 300 Evasion (%) 57 Targeting Accuracy 8 Recoil Reduction 4 Salvage Targeting 4 Relay Coupler Types 2 Relay Coupler Value 45 Item Schematics ----------------- Imp. Medium Laser | -8/Materials | Scanalyzed Adv. Targeting Computer | -8/Materials | Scanalyzed Imp. Light Cannon | -8/Materials | Scanalyzed Hrd. Light Armor Plating | -8/Materials | Scanalyzed Hvy. Ion Engine | -8/Materials | Scanalyzed Robot Schematics ------------------ L-31 Rogue | -8/Materials | Hacked Fabricated ------------ Nothing Alien Tech Used ----------------- None Achievements -------------- None Challenges ------------ None Game ------ Seed GunCooledBank Manual? 0 Play Time 00:46:10 Cumulative 56.3 hours Start 2025.04.27 @ 22:13:45 End 2025.04.27 @ 22:59:44 Sessions 1 Manual Loads 0 Difficulty Rogue Special Mode None Game No. 165 Rogue 165 Adventurer 0 Explorer 0 Win Type - Total 0 Types 0/0/0/0/0/0/0/0/0 Lore% 15 Gallery% 40 Achievement% 32 Wizard Run 0 Options --------- Layout 0 ASCII 0 Keyboard 0 Movement Numpad Keybinds 0 Fullscreen 2 Font 18/Terminus Map View 76x50 Zoom Use 0% Tactical HUD 1 Map Filters NONE Filters NONE Steam 1 RUN: 87d21b7b-0f93-40ca-bd60-0aad76d5dff6